[Event "Titled Tuesday Blitz April 18 Late 2023"]
[White "Pinheiro, Iung Alicio de O."]
[Black "Gupta, Abhijeet"]
[WhiteFideId "2104350"]
[BlackFideId "5010608"]
[WhiteElo "2283"]
[BlackElo "2528"]
[Result "1-0"]
[Round "04"]
[TimeControl "180+2"]
[Date "2023.04.18"]
[WhiteClock "0:00:13"]
[BlackClock "0:00:03"]

1. e4 {[%clk 0:03:00]}  c5 {[%clk 0:03:00]} 2. Nf3 {[%clk 0:02:59]}  d6 {[%clk 0:03:00]} 3. Nc3 {[%clk 0:02:58]}  Nf6 {[%clk 0:02:59]} 4. e5 {[%clk 0:02:58]}  dxe5 {[%clk 0:02:59]} 5. Nxe5 {[%clk 0:02:59]}  Nbd7 {[%clk 0:02:58]} 6. Bb5 {[%clk 0:02:56]}  a6 {[%clk 0:02:56]} 7. Bxd7+ {[%clk 0:02:55]}  Nxd7 {[%clk 0:02:56]} 8. Nf3 {[%clk 0:02:17]}  b5 {[%clk 0:02:54]} 9. d3 {[%clk 0:02:17]}  Bb7 {[%clk 0:02:54]} 10. O-O {[%clk 0:02:17]}  e6 {[%clk 0:02:54]} 11. a4 {[%clk 0:02:17]}  b4 {[%clk 0:02:53]} 12. Nb1 {[%clk 0:02:17]}  Be7 {[%clk 0:02:49]} 13. a5 {[%clk 0:02:17]}  O-O {[%clk 0:02:49]} 14. Nbd2 {[%clk 0:02:18]}  Qc7 {[%clk 0:02:34]} 15. Nc4 {[%clk 0:02:18]}  Rae8 {[%clk 0:02:33]} 16. Re1 {[%clk 0:02:17]}  Bf6 {[%clk 0:02:31]} 17. Qe2 {[%clk 0:02:14]}  e5 {[%clk 0:02:30]} 18. Nfd2 {[%clk 0:01:58]}  Be7 {[%clk 0:02:24]} 19. c3 {[%clk 0:01:45]}  f5 {[%clk 0:02:17]} 20. cxb4 {[%clk 0:01:45]}  cxb4 {[%clk 0:02:17]} 21. f3 {[%clk 0:01:39]}  Bh4 {[%clk 0:02:09]} 22. Rf1 {[%clk 0:01:38]}  Nc5 {[%clk 0:02:08]} 23. Nb6 {[%clk 0:01:20]}  e4 {[%clk 0:01:46]} 24. dxe4 {[%clk 0:01:04]}  fxe4 {[%clk 0:01:43]} 25. Qc4+ {[%clk 0:00:49]}  Kh8 {[%clk 0:01:43]} 26. Nxe4 {[%clk 0:00:46]}  Nxe4 {[%clk 0:01:32]} 27. Qxc7 {[%clk 0:00:40]}  Re7 {[%clk 0:01:13]} 28. Qc4 {[%clk 0:00:35]}  Bf6 {[%clk 0:00:38]} 29. fxe4 {[%clk 0:00:20]}  Rxe4 {[%clk 0:00:39]} 30. Qc5 {[%clk 0:00:20]}  Bd4+ {[%clk 0:00:15]} 31. Qxd4 {[%clk 0:00:16]}  Rxf1+ {[%clk 0:00:16]} 32. Kxf1 {[%clk 0:00:17]}  Rxd4 {[%clk 0:00:16]} 33. Be3 {[%clk 0:00:17]}  Rd3 {[%clk 0:00:16]} 34. Ke2 {[%clk 0:00:17]}  Rb3 {[%clk 0:00:15]} 35. Bd4 {[%clk 0:00:17]}  h6 {[%clk 0:00:15]} 36. g3 {[%clk 0:00:17]}  Be4 {[%clk 0:00:14]} 37. Re1 {[%clk 0:00:14]}  Rd3 {[%clk 0:00:12]} 38. Be3 {[%clk 0:00:14]}  Rb3 {[%clk 0:00:12]} 39. Bc1 {[%clk 0:00:14]}  Bd3+ {[%clk 0:00:11]} 40. Kf2 {[%clk 0:00:13]}  Kg8 {[%clk 0:00:03]} 41. Re3 {[%clk 0:00:13]}  Kf7 {[%clk 0:00:03]} 42. Ke1 {[%clk 0:00:13]} 1-0


[Site "https://www.chess.com"]

[Event "Titled Tuesday Blitz April 18 Late 2023"]
[White "Paravyan, David"]
[Black "Vlassov, Nikolai"]
[WhiteFideId "4194985"]
[BlackFideId "4103360"]
[WhiteElo "2563"]
[BlackElo "2324"]
[Result "1-0"]
[Round "04"]
[TimeControl "180+2"]
[Date "2023.04.18"]
[WhiteClock "0:01:31"]
[BlackClock "0:00:02"]

1. d4 {[%clk 0:03:00]}  Nf6 {[%clk 0:02:59]} 2. c4 {[%clk 0:02:59]}  Nc6 {[%clk 0:02:59]} 3. h4 {[%clk 0:02:58]}  e5 {[%clk 0:02:58]} 4. d5 {[%clk 0:02:57]}  Ne7 {[%clk 0:02:59]} 5. Nc3 {[%clk 0:02:56]}  Neg8 {[%clk 0:02:58]} 6. e4 {[%clk 0:02:55]}  Bc5 {[%clk 0:02:58]} 7. Rh3 {[%clk 0:02:49]}  d6 {[%clk 0:02:56]} 8. Rg3 {[%clk 0:02:50]}  g6 {[%clk 0:02:52]} 9. Be2 {[%clk 0:02:50]}  c6 {[%clk 0:02:43]} 10. Be3 {[%clk 0:02:48]}  Bxe3 {[%clk 0:02:40]} 11. Rxe3 {[%clk 0:02:49]}  cxd5 {[%clk 0:02:40]} 12. cxd5 {[%clk 0:02:50]}  h5 {[%clk 0:02:24]} 13. Nh3 {[%clk 0:02:49]}  Ng4 {[%clk 0:02:23]} 14. Bxg4 {[%clk 0:02:44]}  hxg4 {[%clk 0:02:19]} 15. Ng1 {[%clk 0:02:44]}  Rxh4 {[%clk 0:02:12]} 16. Qa4+ {[%clk 0:02:44]}  Bd7 {[%clk 0:02:07]} 17. Qb4 {[%clk 0:02:44]}  Qc7 {[%clk 0:02:01]} 18. O-O-O {[%clk 0:02:41]}  a5 {[%clk 0:01:41]} 19. Qb3 {[%clk 0:02:41]}  b5 {[%clk 0:01:40]} 20. Kb1 {[%clk 0:02:42]}  b4 {[%clk 0:01:37]} 21. Nce2 {[%clk 0:02:43]}  f5 {[%clk 0:01:24]} 22. Rc1 {[%clk 0:02:42]}  Qb6 {[%clk 0:01:20]} 23. exf5 {[%clk 0:02:29]}  gxf5 {[%clk 0:01:17]} 24. Nf4 {[%clk 0:02:17]}  Ne7 {[%clk 0:01:14]} 25. Ne6 {[%clk 0:02:15]}  Bxe6 {[%clk 0:01:01]} 26. dxe6 {[%clk 0:02:16]}  a4 {[%clk 0:00:59]} 27. Qd1 {[%clk 0:02:16]}  a3 {[%clk 0:00:56]} 28. bxa3 {[%clk 0:02:11]}  Rxa3 {[%clk 0:00:43]} 29. Ne2 {[%clk 0:02:11]}  f4 {[%clk 0:00:33]} 30. Rb3 {[%clk 0:02:07]}  Rh2 {[%clk 0:00:28]} 31. Nc3 {[%clk 0:01:57]}  Rxg2 {[%clk 0:00:20]} 32. Nd5 {[%clk 0:01:55]}  Qd4 {[%clk 0:00:11]} 33. Rxb4 {[%clk 0:01:31]}  Qxd1 {[%clk 0:00:03]} 34. Rb8+ {[%clk 0:01:30]}  Nc8 {[%clk 0:00:02]} 35. Rxc8# {[%clk 0:01:31]} 1-0


[Site "https://www.chess.com"]

[Event "Titled Tuesday Blitz April 18 Late 2023"]
[White "Ozates, Tuna"]
[Black "Kamsky, Gata"]
[WhiteFideId "6354521"]
[BlackFideId "2000024"]
[WhiteElo "2151"]
[BlackElo "2660"]
[Result "1-0"]
[Round "04"]
[TimeControl "180+2"]
[Date "2023.04.18"]
[WhiteClock "0:00:09"]
[BlackClock "0:00:30"]

1. e4 {[%clk 0:02:57]}  c5 {[%clk 0:02:57]} 2. Nf3 {[%clk 0:02:57]}  e6 {[%clk 0:02:57]} 3. d4 {[%clk 0:02:53]}  cxd4 {[%clk 0:02:57]} 4. Nxd4 {[%clk 0:02:54]}  a6 {[%clk 0:02:57]} 5. c4 {[%clk 0:02:54]}  Nf6 {[%clk 0:02:56]} 6. Nc3 {[%clk 0:02:54]}  Qc7 {[%clk 0:02:56]} 7. a3 {[%clk 0:02:53]}  b6 {[%clk 0:02:55]} 8. Be2 {[%clk 0:02:53]}  Bb7 {[%clk 0:02:56]} 9. f3 {[%clk 0:02:54]}  h5 {[%clk 0:02:41]} 10. Be3 {[%clk 0:02:34]}  Nc6 {[%clk 0:02:39]} 11. O-O {[%clk 0:02:15]}  Bd6 {[%clk 0:02:37]} 12. h3 {[%clk 0:02:06]}  Bh2+ {[%clk 0:02:33]} 13. Kh1 {[%clk 0:02:04]}  Bf4 {[%clk 0:02:33]} 14. Qd2 {[%clk 0:01:58]}  g5 {[%clk 0:02:31]} 15. Rac1 {[%clk 0:01:37]}  Bxe3 {[%clk 0:02:21]} 16. Qxe3 {[%clk 0:01:37]}  Qf4 {[%clk 0:02:20]} 17. Qf2 {[%clk 0:01:02]}  h4 {[%clk 0:02:17]} 18. Bd3 {[%clk 0:00:51]}  Nh5 {[%clk 0:02:14]} 19. Nce2 {[%clk 0:00:50]}  Qe5 {[%clk 0:02:12]} 20. Nxc6 {[%clk 0:00:50]}  Bxc6 {[%clk 0:02:11]} 21. b4 {[%clk 0:00:49]}  Ng3+ {[%clk 0:02:08]} 22. Nxg3 {[%clk 0:00:48]}  hxg3 {[%clk 0:02:09]} 23. Qxb6 {[%clk 0:00:47]}  Qb2 {[%clk 0:02:00]} 24. Rc2 {[%clk 0:00:43]}  Qxa3 {[%clk 0:01:58]} 25. Qd4 {[%clk 0:00:42]}  Ke7 {[%clk 0:01:49]} 26. c5 {[%clk 0:00:39]}  Rab8 {[%clk 0:01:21]} 27. Qd6+ {[%clk 0:00:21]}  Kf6 {[%clk 0:01:20]} 28. f4 {[%clk 0:00:19]}  g4 {[%clk 0:01:08]} 29. Qe5+ {[%clk 0:00:17]}  Ke7 {[%clk 0:01:07]} 30. Qd6+ {[%clk 0:00:17]}  Kf6 {[%clk 0:01:07]} 31. f5 {[%clk 0:00:10]}  Kg7 {[%clk 0:01:00]} 32. fxe6 {[%clk 0:00:10]}  Rbf8 {[%clk 0:00:42]} 33. e7 {[%clk 0:00:08]}  f6 {[%clk 0:00:34]} 34. exf8=Q+ {[%clk 0:00:08]}  Rxf8 {[%clk 0:00:34]} 35. Qxg3 {[%clk 0:00:09]}  Qxb4 {[%clk 0:00:30]} 36. Qxg4+ {[%clk 0:00:09]}  Kf7 {[%clk 0:00:30]} 37. Rcf2 {[%clk 0:00:10]}  Ke7 {[%clk 0:00:29]} 38. Rxf6 {[%clk 0:00:08]}  Rxf6 {[%clk 0:00:29]} 39. Qg7+ {[%clk 0:00:08]}  Kd8 {[%clk 0:00:29]} 40. Qxf6+ {[%clk 0:00:09]}  Kc7 {[%clk 0:00:29]} 41. Qd6+ {[%clk 0:00:09]}  Kb7 {[%clk 0:00:30]} 42. Rb1 {[%clk 0:00:09]} 1-0


[Site "https://www.chess.com"]

[Event "Titled Tuesday Blitz April 18 Late 2023"]
[White "Vovk, Orest"]
[Black "Anton Guijarro, David"]
[WhiteFideId "14113490"]
[BlackFideId "2285525"]
[WhiteElo "2215"]
[BlackElo "2618"]
[Result "0-1"]
[Round "04"]
[TimeControl "180+2"]
[Date "2023.04.18"]
[WhiteClock "0:00:01"]
[BlackClock "0:00:18"]

1. h4 {[%clk 0:02:49]}  d5 {[%clk 0:02:59]} 2. h5 {[%clk 0:02:48]}  e5 {[%clk 0:02:59]} 3. h6 {[%clk 0:02:47]}  Nxh6 {[%clk 0:02:59]} 4. d4 {[%clk 0:02:47]}  e4 {[%clk 0:02:57]} 5. Bxh6 {[%clk 0:02:48]}  gxh6 {[%clk 0:02:58]} 6. e3 {[%clk 0:02:48]}  c6 {[%clk 0:02:57]} 7. c4 {[%clk 0:02:49]}  Nd7 {[%clk 0:02:57]} 8. Nc3 {[%clk 0:02:49]}  Nf6 {[%clk 0:02:57]} 9. Qb3 {[%clk 0:02:50]}  a6 {[%clk 0:02:52]} 10. cxd5 {[%clk 0:02:44]}  cxd5 {[%clk 0:02:51]} 11. Nge2 {[%clk 0:02:44]}  b5 {[%clk 0:02:51]} 12. Nf4 {[%clk 0:02:42]}  Be6 {[%clk 0:02:49]} 13. Nxe6 {[%clk 0:02:27]}  fxe6 {[%clk 0:02:49]} 14. Be2 {[%clk 0:02:27]}  Bg7 {[%clk 0:02:32]} 15. Bh5+ {[%clk 0:02:20]}  Ke7 {[%clk 0:02:30]} 16. Ne2 {[%clk 0:02:04]}  Qa5+ {[%clk 0:02:26]} 17. Qc3 {[%clk 0:01:57]}  Qxc3+ {[%clk 0:02:24]} 18. bxc3 {[%clk 0:01:58]}  Rhc8 {[%clk 0:02:13]} 19. Kd2 {[%clk 0:01:58]}  Rf8 {[%clk 0:02:07]} 20. Nf4 {[%clk 0:01:53]}  Nd7 {[%clk 0:02:06]} 21. a4 {[%clk 0:01:47]}  bxa4 {[%clk 0:02:02]} 22. Rxa4 {[%clk 0:01:44]}  Nb6 {[%clk 0:02:01]} 23. Ra2 {[%clk 0:01:32]}  a5 {[%clk 0:01:54]} 24. Be2 {[%clk 0:01:27]}  Rfb8 {[%clk 0:01:24]} 25. Kc2 {[%clk 0:01:16]}  Kd6 {[%clk 0:01:02]} 26. Rb1 {[%clk 0:00:58]}  Bf6 {[%clk 0:00:56]} 27. Rab2 {[%clk 0:00:45]}  Bd8 {[%clk 0:00:52]} 28. c4 {[%clk 0:00:26]}  dxc4 {[%clk 0:00:52]} 29. Bxc4 {[%clk 0:00:18]}  a4 {[%clk 0:00:52]} 30. Bxe6 {[%clk 0:00:14]}  a3 {[%clk 0:00:46]} 31. Ra2 {[%clk 0:00:11]}  Bg5 {[%clk 0:00:46]} 32. Bb3 {[%clk 0:00:08]}  Bxf4 {[%clk 0:00:46]} 33. exf4 {[%clk 0:00:07]}  Ra5 {[%clk 0:00:34]} 34. Rba1 {[%clk 0:00:05]}  Rba8 {[%clk 0:00:34]} 35. g4 {[%clk 0:00:05]}  Nd5 {[%clk 0:00:31]} 36. Bxd5 {[%clk 0:00:04]}  Kxd5 {[%clk 0:00:32]} 37. Kb3 {[%clk 0:00:03]}  Rf8 {[%clk 0:00:18]} 38. Rxa3 {[%clk 0:00:03]}  Rxa3+ {[%clk 0:00:18]} 39. Rxa3 {[%clk 0:00:04]}  Rxf4 {[%clk 0:00:18]} 40. Ra5+ {[%clk 0:00:04]}  Kxd4 {[%clk 0:00:19]} 41. Rh5 {[%clk 0:00:04]}  Rxf2 {[%clk 0:00:18]} 42. Rxh6 {[%clk 0:00:05]}  Rf7 {[%clk 0:00:19]} 43. Kc2 {[%clk 0:00:03]}  Ke3 {[%clk 0:00:19]} 44. g5 {[%clk 0:00:02]}  Rd7 {[%clk 0:00:19]} 45. Rh3+ {[%clk 0:00:01]}  Kf2 {[%clk 0:00:18]} 0-1


[Site "https://www.chess.com"]

[Event "Titled Tuesday Blitz April 18 Late 2023"]
[White "Suleymanli, Aydin"]
[Black "Rosen, Eric"]
[WhiteFideId "13413937"]
[BlackFideId "2032562"]
[WhiteElo "2559"]
[BlackElo "2331"]
[Result "1-0"]
[Round "04"]
[TimeControl "180+2"]
[Date "2023.04.18"]
[WhiteClock "0:00:10"]
[BlackClock "0:00:03"]

1. d4 {[%clk 0:02:56]}  d5 {[%clk 0:02:58]} 2. c4 {[%clk 0:02:56]}  e6 {[%clk 0:02:59]} 3. Nc3 {[%clk 0:02:56]}  Nf6 {[%clk 0:02:59]} 4. cxd5 {[%clk 0:02:55]}  exd5 {[%clk 0:03:00]} 5. Bg5 {[%clk 0:02:56]}  c6 {[%clk 0:02:53]} 6. e3 {[%clk 0:02:53]}  Bd6 {[%clk 0:02:51]} 7. Bd3 {[%clk 0:02:51]}  h6 {[%clk 0:02:49]} 8. Bh4 {[%clk 0:02:50]}  O-O {[%clk 0:02:50]} 9. Nge2 {[%clk 0:02:49]}  Re8 {[%clk 0:02:50]} 10. h3 {[%clk 0:02:45]}  a5 {[%clk 0:02:49]} 11. O-O {[%clk 0:02:44]}  Na6 {[%clk 0:02:49]} 12. a3 {[%clk 0:02:43]}  Nc7 {[%clk 0:02:50]} 13. Bg3 {[%clk 0:02:41]}  Bxg3 {[%clk 0:02:39]} 14. Nxg3 {[%clk 0:02:42]}  Be6 {[%clk 0:02:17]} 15. b4 {[%clk 0:02:37]}  b5 {[%clk 0:02:15]} 16. Qd2 {[%clk 0:02:31]}  axb4 {[%clk 0:02:03]} 17. axb4 {[%clk 0:02:30]}  Qd6 {[%clk 0:02:03]} 18. Nce2 {[%clk 0:02:27]}  Rxa1 {[%clk 0:01:54]} 19. Rxa1 {[%clk 0:02:26]}  Ra8 {[%clk 0:01:55]} 20. Rxa8+ {[%clk 0:02:23]}  Nxa8 {[%clk 0:01:56]} 21. Nc1 {[%clk 0:02:15]}  Nb6 {[%clk 0:01:51]} 22. Nb3 {[%clk 0:02:13]}  Qf8 {[%clk 0:01:31]} 23. Nc5 {[%clk 0:02:08]}  Qa8 {[%clk 0:01:31]} 24. Ne2 {[%clk 0:02:01]}  Ne8 {[%clk 0:01:22]} 25. Nc1 {[%clk 0:01:51]}  Nd6 {[%clk 0:01:22]} 26. N1b3 {[%clk 0:01:34]}  Qa3 {[%clk 0:01:21]} 27. Na5 {[%clk 0:01:30]}  Nbc4 {[%clk 0:01:21]} 28. Qe1 {[%clk 0:01:27]}  Nxa5 {[%clk 0:00:56]} 29. bxa5 {[%clk 0:01:28]}  b4 {[%clk 0:00:56]} 30. a6 {[%clk 0:01:18]}  Bc8 {[%clk 0:00:51]} 31. Kh2 {[%clk 0:00:40]}  g6 {[%clk 0:00:40]} 32. f3 {[%clk 0:00:32]}  b3 {[%clk 0:00:24]} 33. Qg3 {[%clk 0:00:30]}  b2 {[%clk 0:00:03]} 34. Qxd6 {[%clk 0:00:21]}  Bf5 {[%clk 0:00:02]} 35. Bxf5 {[%clk 0:00:13]}  gxf5 {[%clk 0:00:03]} 36. Qb8+ {[%clk 0:00:11]}  Kg7 {[%clk 0:00:02]} 37. a7 {[%clk 0:00:12]}  f4 {[%clk 0:00:01]} 38. a8=Q {[%clk 0:00:05]}  Qxa8 {[%clk 0:00:01]} 39. Qxa8 {[%clk 0:00:05]}  b1=Q {[%clk 0:00:01]} 40. Qe8 {[%clk 0:00:05]}  Qc1 {[%clk 0:00:01]} 41. Qe5+ {[%clk 0:00:05]}  Kg8 {[%clk 0:00:01]} 42. Qxf4 {[%clk 0:00:06]}  h5 {[%clk 0:00:01]} 43. Nd7 {[%clk 0:00:06]}  f5 {[%clk 0:00:01]} 44. Nf6+ {[%clk 0:00:07]}  Kf7 {[%clk 0:00:02]} 45. Nxh5 {[%clk 0:00:07]}  c5 {[%clk 0:00:02]} 46. Ng3 {[%clk 0:00:08]}  cxd4 {[%clk 0:00:01]} 47. Qxf5+ {[%clk 0:00:08]}  Ke7 {[%clk 0:00:02]} 48. Qe5+ {[%clk 0:00:09]}  Kd7 {[%clk 0:00:02]} 49. Qxd5+ {[%clk 0:00:09]}  Kc8 {[%clk 0:00:02]} 50. Qxd4 {[%clk 0:00:10]}  Qc7 {[%clk 0:00:02]} 51. f4 {[%clk 0:00:10]}  Kb7 {[%clk 0:00:02]} 52. f5 {[%clk 0:00:10]}  Qb6 {[%clk 0:00:03]} 53. Qxb6+ {[%clk 0:00:10]}  Ka8 {[%clk 0:00:03]} 54. Qd8+ {[%clk 0:00:10]} 1-0


[Site "https://www.chess.com"]

[Event "Titled Tuesday Blitz April 18 Late 2023"]
[White "MKlose11"]
[Black "Rustemov, Alexander"]
[BlackFideId "4119002"]
[WhiteElo "2577"]
[BlackElo "2857"]
[Result "0-1"]
[Round "04"]
[TimeControl "180+2"]
[Date "2023.04.18"]
[WhiteClock "0:00:12"]
[BlackClock "0:00:54"]

1. e4 {[%clk 0:03:00]}  e6 {[%clk 0:02:57]} 2. Nf3 {[%clk 0:03:00]}  d5 {[%clk 0:02:55]} 3. e5 {[%clk 0:03:00]}  c5 {[%clk 0:02:55]} 4. b4 {[%clk 0:03:01]}  cxb4 {[%clk 0:02:55]} 5. a3 {[%clk 0:03:01]}  Qa5 {[%clk 0:02:56]} 6. d4 {[%clk 0:03:00]}  Bd7 {[%clk 0:02:56]} 7. Bd3 {[%clk 0:03:00]}  Bb5 {[%clk 0:02:56]} 8. O-O {[%clk 0:02:55]}  Bxd3 {[%clk 0:02:55]} 9. Qxd3 {[%clk 0:02:56]}  Nc6 {[%clk 0:02:53]} 10. Bd2 {[%clk 0:02:56]}  Rc8 {[%clk 0:02:47]} 11. c4 {[%clk 0:02:46]}  Qa6 {[%clk 0:02:39]} 12. Rc1 {[%clk 0:02:39]}  Nge7 {[%clk 0:02:35]} 13. Qb3 {[%clk 0:02:09]}  dxc4 {[%clk 0:02:30]} 14. Rxc4 {[%clk 0:02:09]}  Nd5 {[%clk 0:02:29]} 15. Ra2 {[%clk 0:02:00]}  bxa3 {[%clk 0:02:28]} 16. Nxa3 {[%clk 0:01:55]}  Bxa3 {[%clk 0:02:25]} 17. Rxa3 {[%clk 0:01:55]}  Qb6 {[%clk 0:02:25]} 18. Qc2 {[%clk 0:01:40]}  h6 {[%clk 0:02:25]} 19. Rb3 {[%clk 0:01:37]}  Qa6 {[%clk 0:02:21]} 20. Rb1 {[%clk 0:01:23]}  O-O {[%clk 0:02:16]} 21. Ra4 {[%clk 0:01:22]}  Nxd4 {[%clk 0:02:09]} 22. Qxc8 {[%clk 0:00:42]}  Nxf3+ {[%clk 0:01:52]} 23. gxf3 {[%clk 0:00:40]}  Rxc8 {[%clk 0:01:52]} 24. Rxa6 {[%clk 0:00:40]}  bxa6 {[%clk 0:01:53]} 25. Rb7 {[%clk 0:00:35]}  Rc7 {[%clk 0:01:52]} 26. Rb8+ {[%clk 0:00:32]}  Kh7 {[%clk 0:01:53]} 27. Ra8 {[%clk 0:00:29]}  Kg6 {[%clk 0:01:51]} 28. Kg2 {[%clk 0:00:26]}  Kf5 {[%clk 0:01:50]} 29. Kg3 {[%clk 0:00:24]}  h5 {[%clk 0:01:44]} 30. h4 {[%clk 0:00:20]}  Kxe5 {[%clk 0:01:43]} 31. Ba5 {[%clk 0:00:18]}  Rb7 {[%clk 0:01:40]} 32. Rg8 {[%clk 0:00:18]}  g6 {[%clk 0:01:39]} 33. Rc8 {[%clk 0:00:17]}  Kf5 {[%clk 0:01:38]} 34. Bd2 {[%clk 0:00:17]}  f6 {[%clk 0:01:30]} 35. Ra8 {[%clk 0:00:17]}  e5 {[%clk 0:01:23]} 36. Rc8 {[%clk 0:00:16]}  Nf4 {[%clk 0:01:22]} 37. Ra8 {[%clk 0:00:16]}  Rb2 {[%clk 0:01:18]} 38. Be3 {[%clk 0:00:16]}  Ne2+ {[%clk 0:01:12]} 39. Kg2 {[%clk 0:00:16]}  Nd4 {[%clk 0:01:10]} 40. Rxa7 {[%clk 0:00:16]}  Ra2 {[%clk 0:01:10]} 41. Rd7 {[%clk 0:00:16]}  Ne6 {[%clk 0:01:09]} 42. Ra7 {[%clk 0:00:15]}  a5 {[%clk 0:01:09]} 43. Kg3 {[%clk 0:00:13]}  a4 {[%clk 0:01:09]} 44. Ra5 {[%clk 0:00:13]}  Ra1 {[%clk 0:01:08]} 45. f4 {[%clk 0:00:14]}  a3 {[%clk 0:01:02]} 46. fxe5 {[%clk 0:00:14]}  fxe5 {[%clk 0:01:02]} 47. Bd2 {[%clk 0:00:14]}  Nd4 {[%clk 0:00:53]} 48. Bc3 {[%clk 0:00:14]}  Ne2+ {[%clk 0:00:53]} 49. Kg2 {[%clk 0:00:12]}  Nxc3 {[%clk 0:00:54]} 0-1


[Site "https://www.chess.com"]

[Event "Titled Tuesday Blitz April 18 Late 2023"]
[White "Melikyan, Gnel"]
[Black "Kushko, Dmitriy"]
[WhiteFideId "54109990"]
[BlackFideId "14162261"]
[WhiteElo "2138"]
[BlackElo "2230"]
[Result "0-1"]
[Round "04"]
[TimeControl "180+2"]
[Date "2023.04.18"]
[WhiteClock "0:00:15"]
[BlackClock "0:01:00"]

1. d4 {[%clk 0:02:58]}  g6 {[%clk 0:03:00]} 2. c4 {[%clk 0:02:58]}  Bg7 {[%clk 0:03:01]} 3. Nc3 {[%clk 0:02:58]}  d6 {[%clk 0:03:01]} 4. Nf3 {[%clk 0:02:57]}  e5 {[%clk 0:03:01]} 5. dxe5 {[%clk 0:02:56]}  dxe5 {[%clk 0:03:02]} 6. Qxd8+ {[%clk 0:02:53]}  Kxd8 {[%clk 0:03:03]} 7. g3 {[%clk 0:02:47]}  Be6 {[%clk 0:03:03]} 8. Nd2 {[%clk 0:02:39]}  c6 {[%clk 0:02:59]} 9. Bg2 {[%clk 0:02:38]}  f5 {[%clk 0:02:59]} 10. b3 {[%clk 0:02:34]}  Nd7 {[%clk 0:02:57]} 11. Bb2 {[%clk 0:02:33]}  Nh6 {[%clk 0:02:47]} 12. O-O-O {[%clk 0:02:30]}  Nf7 {[%clk 0:02:45]} 13. Kc2 {[%clk 0:02:19]}  Rc8 {[%clk 0:02:39]} 14. e3 {[%clk 0:02:15]}  Ke7 {[%clk 0:02:34]} 15. Ba3+ {[%clk 0:02:07]}  Kd8 {[%clk 0:02:32]} 16. h4 {[%clk 0:02:04]}  Kc7 {[%clk 0:02:28]} 17. h5 {[%clk 0:02:00]}  Nf6 {[%clk 0:02:14]} 18. hxg6 {[%clk 0:01:55]}  hxg6 {[%clk 0:02:15]} 19. Rxh8 {[%clk 0:01:44]}  Rxh8 {[%clk 0:02:16]} 20. Rh1 {[%clk 0:01:44]}  Rxh1 {[%clk 0:02:02]} 21. Bxh1 {[%clk 0:01:44]}  Ng4 {[%clk 0:02:02]} 22. Nd1 {[%clk 0:01:40]}  e4 {[%clk 0:02:02]} 23. f3 {[%clk 0:01:24]}  exf3 {[%clk 0:02:02]} 24. Nxf3 {[%clk 0:01:24]}  b6 {[%clk 0:01:52]} 25. Bg2 {[%clk 0:01:17]}  c5 {[%clk 0:01:51]} 26. Nh4 {[%clk 0:01:05]}  g5 {[%clk 0:01:35]} 27. Nf3 {[%clk 0:00:58]}  Bf6 {[%clk 0:01:22]} 28. Bc1 {[%clk 0:00:45]}  Nd6 {[%clk 0:01:09]} 29. Nd2 {[%clk 0:00:21]}  Be5 {[%clk 0:01:06]} 30. e4 {[%clk 0:00:20]}  Bxg3 {[%clk 0:01:04]} 31. exf5 {[%clk 0:00:19]}  Bxf5+ {[%clk 0:01:04]} 32. Kb2 {[%clk 0:00:18]}  Be5+ {[%clk 0:01:03]} 33. Nc3 {[%clk 0:00:18]}  Ne3 {[%clk 0:01:01]} 34. Bh1 {[%clk 0:00:15]}  Nd1+ {[%clk 0:01:00]} 0-1


[Site "https://www.chess.com"]

[Event "Titled Tuesday Blitz April 18 Late 2023"]
[White "Llorente Zaro, Alfonso"]
[Black "Omranalhosani21"]
[WhiteFideId "2254131"]
[WhiteElo "2485"]
[BlackElo "2565"]
[Result "1-0"]
[Round "04"]
[TimeControl "180+2"]
[Date "2023.04.18"]
[WhiteClock "0:00:02"]
[BlackClock "0:00:06"]

1. e4 {[%clk 0:03:00]}  c6 {[%clk 0:02:57]} 2. Nf3 {[%clk 0:02:50]}  d5 {[%clk 0:02:56]} 3. d3 {[%clk 0:02:51]}  Nd7 {[%clk 0:02:42]} 4. g3 {[%clk 0:02:46]}  e5 {[%clk 0:02:42]} 5. Bg2 {[%clk 0:02:42]}  Ngf6 {[%clk 0:02:42]} 6. Qe2 {[%clk 0:02:39]}  Bd6 {[%clk 0:02:41]} 7. O-O {[%clk 0:02:37]}  O-O {[%clk 0:02:41]} 8. b3 {[%clk 0:02:33]}  Re8 {[%clk 0:02:40]} 9. Nbd2 {[%clk 0:02:29]}  Nf8 {[%clk 0:02:38]} 10. Bb2 {[%clk 0:02:26]}  Ng6 {[%clk 0:02:38]} 11. h3 {[%clk 0:02:25]}  h6 {[%clk 0:02:36]} 12. a3 {[%clk 0:02:25]}  a5 {[%clk 0:02:34]} 13. c4 {[%clk 0:02:24]}  d4 {[%clk 0:02:13]} 14. Ne1 {[%clk 0:02:09]}  Be6 {[%clk 0:02:07]} 15. Nc2 {[%clk 0:02:09]}  Qd7 {[%clk 0:02:06]} 16. b4 {[%clk 0:02:08]}  Bxh3 {[%clk 0:02:04]} 17. c5 {[%clk 0:02:06]}  Bc7 {[%clk 0:02:01]} 18. Nc4 {[%clk 0:02:06]}  h5 {[%clk 0:01:45]} 19. Kh2 {[%clk 0:01:45]}  Be6 {[%clk 0:01:28]} 20. Nd2 {[%clk 0:01:35]}  h4 {[%clk 0:01:27]} 21. Nf3 {[%clk 0:01:33]}  h3 {[%clk 0:01:21]} 22. Bh1 {[%clk 0:01:32]}  Ng4+ {[%clk 0:01:19]} 23. Kg1 {[%clk 0:01:32]}  f6 {[%clk 0:01:09]} 24. Nh2 {[%clk 0:01:32]}  Nxh2 {[%clk 0:01:09]} 25. Kxh2 {[%clk 0:01:33]}  b6 {[%clk 0:01:03]} 26. cxb6 {[%clk 0:01:29]}  Bxb6 {[%clk 0:01:04]} 27. Bf3 {[%clk 0:01:27]}  c5 {[%clk 0:00:58]} 28. Bh5 {[%clk 0:01:25]}  Bf7 {[%clk 0:00:54]} 29. bxc5 {[%clk 0:00:55]}  Bxc5 {[%clk 0:00:54]} 30. a4 {[%clk 0:00:56]}  Reb8 {[%clk 0:00:51]} 31. Ba3 {[%clk 0:00:56]}  Rc8 {[%clk 0:00:48]} 32. Qg4 {[%clk 0:00:19]}  Nf8 {[%clk 0:00:42]} 33. Bxf7+ {[%clk 0:00:15]}  Kxf7 {[%clk 0:00:42]} 34. Qh5+ {[%clk 0:00:15]}  Kg8 {[%clk 0:00:41]} 35. Bxc5 {[%clk 0:00:13]}  Rxc5 {[%clk 0:00:41]} 36. Ne1 {[%clk 0:00:14]}  Rac8 {[%clk 0:00:37]} 37. Nf3 {[%clk 0:00:14]}  Rc3 {[%clk 0:00:34]} 38. Rfd1 {[%clk 0:00:13]}  Rb8 {[%clk 0:00:32]} 39. Nh4 {[%clk 0:00:13]}  Rb2 {[%clk 0:00:27]} 40. Qf3 {[%clk 0:00:12]}  Ne6 {[%clk 0:00:23]} 41. Qf5 {[%clk 0:00:11]}  Nc5 {[%clk 0:00:22]} 42. Qf3 {[%clk 0:00:10]}  Rbb3 {[%clk 0:00:18]} 43. Rab1 {[%clk 0:00:07]}  Nxa4 {[%clk 0:00:11]} 44. Rxb3 {[%clk 0:00:07]}  Rxb3 {[%clk 0:00:11]} 45. Ra1 {[%clk 0:00:06]}  Rb2 {[%clk 0:00:10]} 46. Nf5 {[%clk 0:00:05]}  g6 {[%clk 0:00:09]} 47. Qg4 {[%clk 0:00:05]}  Kf8 {[%clk 0:00:08]} 48. Qxg6 {[%clk 0:00:05]}  Rb6 {[%clk 0:00:06]} 49. Rxa4 {[%clk 0:00:02]} 1-0


[Site "https://www.chess.com"]